bitfinex-derivatives/quotes_BTCF0:USTF0_20251028
["timestamp","ask_amount","ask_price","bid_price","bid_amount"]
[1761665722135,0.64671185,114980.0,114970.0,0.00434877]
[1761665722940,0.64931185,114980.0,114970.0,0.00434877]
[1761665723833,0.67342872,114980.0,114970.0,0.00434877]
[1761665724038,0.66682872,114980.0,114970.0,0.02637877]
[1761665724238,0.67082872,114980.0,114970.0,0.00434877]
[1761665724636,0.67342872,114980.0,114970.0,0.00434877]
[1761665725251,0.66682872,114980.0,114970.0,0.04829877]
[1761665725948,0.78457191,114980.0,114970.0,0.00434877]
[1761665726240,0.01626,114950.0,114940.0,0.05773]
[1761665726448,0.37706,114950.0,114940.0,0.06915637]
[1761665726839,0.37706,114950.0,114940.0,0.15616257]
[1761665727043,0.37706,114950.0,114940.0,0.06655637]
[1761665727541,0.37706,114950.0,114940.0,0.06755637]
[1761665727744,0.37706,114950.0,114940.0,0.07255637]
[1761665728854,0.36893,114950.0,114940.0,0.15956257]
[1761665729047,0.37706,114950.0,114940.0,0.07515637]
[1761665729548,0.37706,114950.0,114940.0,0.07255637]
[1761665729841,0.73385504,114950.0,114940.0,0.02803]
[1761665730042,0.73645504,114950.0,114940.0,0.006]
[1761665730245,0.39966,114950.0,114940.0,0.006]
[1761665730445,0.39565504,114950.0,114940.0,0.006]
[1761665730650,0.78523545,114950.0,114940.0,0.006]
[1761665730840,1.13943049,114950.0,114940.0,0.006]
[1761665731142,0.79138166,114950.0,114940.0,0.01861]
[1761665731340,0.76660621,114950.0,114940.0,0.006]
[1761665731544,1.12340125,114950.0,114940.0,0.005]
[1761665731743,1.12340125,114950.0,114930.0,0.04911716]
[1761665731744,0.01626,114940.0,114930.0,0.04911716]
[1761665731967,0.73798504,114940.0,114930.0,0.00443716]
[1761665732147,0.76058504,114940.0,114930.0,0.00443716]
[1761665732946,0.78533586,114940.0,114930.0,0.00443716]
[1761665733143,1.38533586,114940.0,114930.0,0.00443716]
[1761665733344,0.01626,114920.0,114910.0,0.04468]
[1761665733549,0.37706,114920.0,114910.0,0.04468]
[1761665734055,0.73385504,114920.0,114910.0,0.04468]
[1761665734348,0.73394368,114920.0,114910.0,0.04468]
[1761665734545,0.37714864,114920.0,114910.0,0.05931284]
[1761665734747,0.37714864,114920.0,114910.0,0.05328]
[1761665735345,0.73394368,114920.0,114910.0,0.006]
[1761665735550,1.09734368,114920.0,114910.0,0.006]
[1761665736148,1.41206346,114920.0,114910.0,0.006]
[1761665736351,1.41206346,114920.0,114890.0,0.0043518]
[1761665736352,0.02026,114900.0,114890.0,0.0043518]
[1761665736557,0.02026,114900.0,114860.0,0.05738632]
[1761665736558,0.01626,114870.0,114860.0,0.05738632]
[1761665736857,0.37706,114870.0,114860.0,0.05738632]
[1761665737364,0.01626,114870.0,114860.0,0.14445292]
[1761665737564,0.37706,114870.0,114860.0,0.14705292]
[1761665737853,0.36893,114880.0,114870.0,0.04468]
[1761665738049,0.36893,114880.0,114870.0,0.04728]
[1761665738050,0.37706,114880.0,114870.0,0.04728]
[1761665738241,0.37706,114880.0,114870.0,0.04468]
[1761665738449,0.37706,114880.0,114870.0,0.05361824]
[1761665738746,0.37706,114880.0,114870.0,0.05621824]
[1761665739260,0.37706,114880.0,114870.0,0.05361824]
[1761665739448,0.37706,114880.0,114870.0,0.04468]
[1761665740055,0.01626,114870.0,114860.0,0.06838632]
[1761665740354,0.73394671,114870.0,114860.0,0.05738632]
[1761665740556,0.37715167,114870.0,114860.0,0.05738632]
[1761665740946,0.37715167,114870.0,114860.0,0.01270632]
[1761665741152,0.82100701,114870.0,114860.0,0.05938632]
[1761665741347,0.82100701,114870.0,114860.0,0.06638632]
[1761665742055,0.46421197,114870.0,114860.0,0.06638632]
[1761665742251,0.82100701,114870.0,114860.0,0.06638632]
[1761665742557,0.46421197,114870.0,114860.0,0.06638632]
[1761665743156,0.46421217,114870.0,114860.0,0.06638632]
[1761665743461,0.46421217,114870.0,114860.0,0.06438632]
[1761665743650,0.46421217,114870.0,114860.0,0.06338632]
[1761665743843,0.37715167,114870.0,114860.0,0.15305442]
[1761665744048,9.167e-05,114870.0,114860.0,0.75305442]
[1761665744252,0.44795217,114870.0,114860.0,0.75305442]
[1761665744556,0.44795217,114870.0,114860.0,0.66338632]
[1761665744758,0.45608217,114870.0,114860.0,0.66338632]
[1761665744946,0.36089167,114870.0,114860.0,0.75305442]
[1761665745151,9.167e-05,114870.0,114860.0,0.15305442]
[1761665746559,9.167e-05,114870.0,114860.0,0.87064946]
[1761665747261,0.4478469,114890.0,114880.0,0.05729]
[1761665747460,0.4478469,114890.0,114880.0,0.1443429]
[1761665747761,0.3608,114890.0,114880.0,0.1469429]
[1761665747955,0.3608,114900.0,114890.0,0.1317253]
[1761665748259,0.36893,114900.0,114890.0,0.1343253]
[1761665748458,0.36893,114900.0,114890.0,0.1317253]
[1761665748667,0.3608,114900.0,114890.0,0.1317253]
[1761665748853,0.36893,114900.0,114890.0,0.1317253]
[1761665749251,0.37706,114900.0,114890.0,0.04468]
[1761665750166,0.37806,114900.0,114890.0,0.04468]
[1761665750355,0.4027387,114900.0,114890.0,0.04468]
[1761665750860,0.4027387,114900.0,114890.0,0.1317254]
[1761665751467,0.4027387,114900.0,114890.0,0.1343254]
[1761665751862,0.3864787,114900.0,114890.0,0.1343254]
[1761665752563,0.4027387,114900.0,114890.0,0.1343254]
[1761665753665,0.0338087,114900.0,114890.0,0.1343254]
[1761665753867,0.3864787,114900.0,114890.0,0.1343254]
[1761665756363,0.4027387,114900.0,114890.0,0.1343254]
[1761665756556,0.3864787,114900.0,114890.0,0.1343251]
[1761665756758,0.0256787,114900.0,114890.0,0.1343251]
[1761665757465,0.04911159,114900.0,114890.0,0.1343251]
[1761665757665,0.0256787,114900.0,114890.0,0.1343251]
[1761665757862,0.0256787,114900.0,114890.0,0.85192014]
[1761665758069,0.02578709,114900.0,114890.0,0.85192014]
[1761665758269,0.02578709,114900.0,114890.0,0.4951251]
[1761665758471,0.02578709,114900.0,114890.0,0.85192014]
[1761665760468,0.04912444,114900.0,114890.0,0.85192014]
[1761665760660,0.04912444,114900.0,114890.0,0.4951251]
[1761665761773,0.04912444,114900.0,114890.0,0.85192014]
[1761665762473,0.05457931,114910.0,114900.0,0.1451675]
[1761665762771,0.05457931,114910.0,114900.0,0.86536254]
[1761665763167,0.02333735,114910.0,114900.0,0.86536254]
[1761665763767,0.02733735,114910.0,114900.0,0.86536254]
[1761665764169,0.02733735,114910.0,114900.0,0.5085675]
[1761665764374,0.07353735,114910.0,114900.0,0.1451675]
[1761665766368,0.84589994,114910.0,114900.0,0.05813]
[1761665766568,0.4891049,114910.0,114900.0,0.05813]
[1761665766779,0.1283049,114910.0,114900.0,0.1477675]
[1761665767078,0.05865739,114910.0,114900.0,0.1477675]
[1761665767276,0.38821543,114910.0,114900.0,0.1477675]
[1761665767479,0.43441543,114910.0,114900.0,0.1451675]
[1761665767772,0.46565739,114910.0,114900.0,0.1451675]
[1761665768876,0.05865739,114910.0,114900.0,0.1451675]
[1761665769182,0.02741543,114910.0,114900.0,0.1477675]
[1761665770183,0.02741543,114910.0,114900.0,0.1451675]
[1761665770184,0.06974543,114910.0,114900.0,0.1451675]
[1761665770687,0.06974543,114910.0,114900.0,0.1477675]
[1761665771288,0.07757196,114910.0,114900.0,0.05813]
[1761665771481,0.07757196,114910.0,114900.0,0.1451672]
[1761665771482,0.4852349,114910.0,114900.0,0.1451672]
[1761665771790,0.04233,114900.0,114890.0,0.04259]
[1761665771984,0.04233,114890.0,114880.0,0.1208083]
[1761665772284,0.04233,114890.0,114880.0,0.0552]
[1761665772487,0.06573956,114890.0,114880.0,0.1448537]
[1761665773189,0.42653956,114890.0,114880.0,0.1448537]
[1761665773384,0.42653956,114890.0,114880.0,0.0598]
[1761665773789,0.7833346,114890.0,114880.0,0.002]
[1761665774087,0.42653956,114890.0,114880.0,0.002]
[1761665774282,0.45775231,114890.0,114880.0,0.002]
[1761665774481,0.48123957,114890.0,114880.0,0.002]
[1761665774883,0.48123957,114890.0,114880.0,0.02315]
[1761665775082,0.48123957,114890.0,114880.0,0.002]
[1761665775394,0.06581726,114890.0,114880.0,0.1454442]
[1761665776076,0.42661726,114890.0,114880.0,0.02415]
[1761665776580,0.42661726,114890.0,114880.0,0.05839]
[1761665776779,0.45002682,114890.0,114880.0,0.02415]
[1761665776992,0.45002682,114890.0,114880.0,0.003]
[1761665777379,0.42661726,114890.0,114880.0,0.003]
[1761665777791,0.42661726,114890.0,114880.0,0.02415]
[1761665778197,0.42661726,114890.0,114880.0,0.1454442]
[1761665778681,0.42661726,114890.0,114880.0,0.04559]
[1761665778987,0.42661726,114890.0,114880.0,0.1454442]
[1761665779194,0.42661726,114890.0,114880.0,0.05839]
[1761665780195,0.42661726,114890.0,114880.0,0.04559]
[1761665780398,0.40560726,114890.0,114880.0,0.1454436]
[1761665780595,0.40560726,114890.0,114880.0,0.1480436]
[1761665780596,0.40313,114890.0,114880.0,0.1480436]
[1761665781108,0.40313,114890.0,114880.0,0.1454436]
[1761665781398,0.40313,114890.0,114880.0,0.1480436]
[1761665783484,0.40313,114890.0,114880.0,0.06099]
[1761665783689,0.40313,114890.0,114880.0,0.1454438]
[1761665783989,0.40313,114890.0,114880.0,0.1480438]
[1761665784396,0.40313,114890.0,114880.0,0.1454438]
[1761665785396,0.40713,114890.0,114880.0,0.003]
[1761665785596,0.40713,114890.0,114880.0,0.1326437]
[1761665785992,0.40713,114890.0,114880.0,0.1454437]
[1761665786193,0.40313,114890.0,114880.0,0.1480437]
[1761665786399,0.40313,114890.0,114880.0,0.06099]
[1761665786593,0.40313,114890.0,114880.0,0.05839]
[1761665787301,0.40313,114890.0,114880.0,0.145443]
[1761665787691,0.40313,114900.0,114890.0,0.1296343]
[1761665787896,0.40313,114900.0,114890.0,0.1450343]
[1761665788108,0.40313,114910.0,114900.0,0.05539]
[1761665788403,0.40313,114910.0,114900.0,0.1424267]
[1761665789404,0.04454,114890.0,114880.0,0.41841]
[1761665789700,0.40534,114890.0,114880.0,0.05761]
[1761665790496,0.40534,114890.0,114870.0,0.72703676]
[1761665790497,0.04454,114880.0,114870.0,0.05761]
[1761665790990,0.40534,114880.0,114870.0,0.05761]
[1761665791507,0.40534,114880.0,114870.0,0.06021]
[1761665792208,0.40534,114880.0,114870.0,0.06521]
[1761665792393,0.41385,114880.0,114870.0,0.02763]
[1761665793706,0.41385,114880.0,114870.0,0.005]
[1761665795597,0.41385,114880.0,114870.0,0.04981]
[1761665796706,0.41385,114880.0,114870.0,0.02763]
[1761665796903,0.41385,114880.0,114870.0,0.005]
[1761665797412,0.41385,114880.0,114870.0,0.02763]
[1761665797706,0.41385,114880.0,114870.0,0.005]
[1761665800101,0.41385,114880.0,114870.0,0.02763]
[1761665800708,0.41385,114880.0,114870.0,0.005]
[1761665801009,0.41385,114880.0,114870.0,0.04981]
[1761665801210,0.41385,114880.0,114870.0,0.02763]
[1761665801599,0.40534,114880.0,114870.0,0.06358]
[1761665802108,0.68037726,114880.0,114870.0,0.005]
[1761665802614,0.68297726,114880.0,114870.0,0.005]
[1761665803398,0.68037726,114880.0,114870.0,0.005]
[1761665804512,0.68297726,114880.0,114870.0,0.005]
[1761665805012,0.68037726,114880.0,114870.0,0.005]
[1761665805207,0.68037726,114880.0,114870.0,0.02763]
[1761665805413,0.4166,114880.0,114870.0,0.02763]
[1761665805611,0.68297726,114880.0,114870.0,0.04981]
[1761665805908,0.414,114880.0,114870.0,0.04981]
[1761665806113,0.68037726,114880.0,114870.0,0.04981]
[1761665806514,0.40534,114880.0,114870.0,0.1506407]
[1761665806711,0.40534,114880.0,114870.0,0.06618]
[1761665806912,0.40534,114880.0,114870.0,0.06358]
[1761665807309,0.4923916,114880.0,114870.0,0.06358]
[1761665810906,0.76742886,114880.0,114870.0,0.005]
[1761665812119,0.5010516,114880.0,114870.0,0.04981]
[1761665812324,0.4923916,114880.0,114870.0,0.06358]
[1761665812511,0.4923916,114880.0,114870.0,0.06618]
[1761665812818,0.4923916,114880.0,114870.0,0.06358]
[1761665813710,0.4923916,114880.0,114870.0,0.32118014]
[1761665814021,0.4923916,114880.0,114870.0,0.32378014]
[1761665814319,0.4923916,114880.0,114870.0,0.23671944]
[1761665814522,0.4923916,114880.0,114870.0,0.23411944]
[1761665815124,0.66293104,114880.0,114870.0,0.23411944]
[1761665815814,0.4923916,114880.0,114870.0,0.06358]
[1761665816017,0.66293104,114880.0,114870.0,0.06358]
[1761665816716,0.83347048,114880.0,114870.0,0.06358]
[1761665816917,0.66293104,114880.0,114870.0,0.06358]
[1761665817523,0.66293104,114880.0,114870.0,0.1506409]
[1761665818218,0.4923916,114880.0,114870.0,0.32118034]
[1761665818420,0.66293104,114880.0,114870.0,0.32118034]
[1761665818622,0.66293104,114880.0,114870.0,0.06358]
[1761665819609,0.84473048,114880.0,114870.0,0.005]
[1761665819924,0.05801,114870.0,114860.0,9.632e-05]
[1761665820120,0.76248888,114870.0,114860.0,9.632e-05]
[1761665820326,0.62934944,114870.0,114860.0,9.632e-05]
[1761665820528,0.81988888,114870.0,114860.0,9.632e-05]
[1761665820711,0.80248888,114870.0,114860.0,9.632e-05]
[1761665821018,0.82560549,114870.0,114860.0,9.632e-05]
[1761665821218,0.82560549,114870.0,114860.0,0.00109632]
[1761665821424,0.82560549,114870.0,114860.0,0.00709632]
[1761665821923,0.76007999,114870.0,114860.0,0.00109632]
[1761665822119,0.75118689,114870.0,114860.0,0.00309632]
[1761665822315,0.72807028,114870.0,114860.0,0.00309632]
[1761665822815,0.73672338,114870.0,114860.0,0.00309632]
[1761665823120,0.76013834,114870.0,114860.0,0.00309632]
[1761665823323,0.73672338,114870.0,114860.0,0.00309632]
[1761665824322,0.76012541,114870.0,114860.0,0.00309632]
[1761665824710,0.75147231,114870.0,114860.0,0.00309632]
[1761665825120,0.72547028,114870.0,114860.0,0.00309632]
[1761665825326,0.68547028,114870.0,114860.0,0.05953632]
[1761665825810,0.68547028,114870.0,114860.0,0.00309632]
[1761665826615,0.68547028,114870.0,114860.0,0.04679632]
[1761665827018,0.41881,114870.0,114860.0,0.04679632]
[1761665827214,0.40607,114870.0,114860.0,0.05953632]
[1761665827419,0.04527,114870.0,114860.0,0.14660462]
[1761665827716,0.40662,114880.0,114870.0,0.05734]
[1761665828226,0.40662,114880.0,114870.0,0.05994]
[1761665828521,0.02296,114880.0,114870.0,0.05994]
[1761665828727,0.40662,114880.0,114870.0,0.05734]
[1761665829928,0.41062,114880.0,114870.0,0.1469999]
[1761665830122,0.41062,114880.0,114870.0,0.05994]
[1761665830322,0.41062,114880.0,114870.0,0.05734]
[1761665831224,0.41062,114880.0,114870.0,0.05994]
[1761665831529,0.41062,114880.0,114870.0,0.05734]
[1761665831717,0.41062,114880.0,114870.0,0.1444]
[1761665831921,0.004,114880.0,114870.0,0.41106028]
[1761665832121,0.004,114880.0,114870.0,1.01466028]
[1761665832322,0.3608,114890.0,114880.0,0.1315025]
[1761665832519,0.40662,114900.0,114890.0,0.1443849]
[1761665832832,0.3608,114900.0,114890.0,0.41364518]
[1761665833529,0.3608,114910.0,114900.0,0.1095774]
[1761665833729,0.3608,114910.0,114900.0,0.41103768]
[1761665833730,0.38376,114910.0,114900.0,0.41103768]
[1761665833934,0.40662,114910.0,114900.0,0.41363768]
[1761665834134,0.40662,114910.0,114900.0,0.05994]
[1761665834836,0.40662,114910.0,114900.0,0.1469774]
[1761665835032,0.38376,114920.0,114910.0,0.1095698]
[1761665835231,0.3608,114920.0,114910.0,0.41363008]
[1761665835534,0.38376,114920.0,114910.0,0.41363008]
[1761665836028,0.40662,114920.0,114910.0,0.1554837]
[1761665836234,0.3608,114920.0,114910.0,0.1554837]
[1761665836533,0.3608,114920.0,114910.0,0.42214398]
[1761665837032,0.38376,114930.0,114920.0,0.1443622]
[1761665837224,0.40662,114930.0,114920.0,0.05994]
[1761665837934,0.40662,114930.0,114920.0,0.1469622]
[1761665838230,0.40762,114930.0,114920.0,0.1469622]
[1761665838438,0.38476,114930.0,114920.0,0.41362248]
[1761665839028,0.40762,114930.0,114920.0,0.41362248]
[1761665839231,0.40762,114930.0,114920.0,0.05994]
[1761665839436,0.40762,114930.0,114920.0,0.1469622]
[1761665840044,0.42036,114930.0,114920.0,0.02514]
[1761665840235,0.42036,114930.0,114920.0,0.04445]
[1761665840945,0.04582,114920.0,114910.0,0.0658539]
[1761665841244,0.40662,114920.0,114910.0,0.0658539]
[1761665842234,0.40662,114920.0,114910.0,0.1528837]
[1761665842446,0.40662,114920.0,114910.0,0.1554837]
[1761665842633,0.40662,114920.0,114910.0,0.1528837]
[1761665842834,0.40662,114920.0,114910.0,0.0658539]
[1761665844548,0.67728028,114920.0,114910.0,0.0085139]
[1761665844731,0.04582,114900.0,114890.0,0.505182]
[1761665845246,0.04582,114900.0,114890.0,0.144382]
[1761665845430,0.04582,114900.0,114890.0,0.1469849]
[1761665845630,0.04582,114900.0,114890.0,0.05994]
[1761665845837,0.41528,114900.0,114890.0,0.04445]
[1761665846130,0.41528,114900.0,114890.0,0.05733835]
[1761665846341,0.40662,114900.0,114890.0,0.07022835]
[1761665846643,0.40662,114900.0,114890.0,0.15727325]
[1761665846843,0.04582,114900.0,114890.0,0.15987325]
[1761665847245,0.04582,114900.0,114890.0,0.42653353]
[1761665847449,0.40662,114910.0,114900.0,0.05734]
[1761665847638,0.40662,114910.0,114900.0,0.05994]
[1761665848242,0.38376,114910.0,114900.0,0.1469774]
[1761665848442,0.4045,114920.0,114910.0,0.05638]
[1761665848634,0.4045,114920.0,114910.0,0.05898]
[1761665849033,0.0437,114920.0,114910.0,0.1460098]
[1761665849345,0.4045,114930.0,114920.0,0.1434022]
[1761665850444,0.4045,114930.0,114920.0,0.05638]
[1761665850648,0.0437,114920.0,114910.0,0.1434094]
[1761665851639,0.3618,114930.0,114920.0,0.04302]
[1761665851640,0.4055,114930.0,114920.0,0.04302]
[1761665852341,0.4045,114930.0,114920.0,0.04302]
[1761665853952,0.4055,114930.0,114920.0,0.04302]
[1761665854148,0.4055,114930.0,114910.0,0.01336]
[1761665854360,0.0437,114900.0,114890.0,0.51264055]
[1761665855451,0.4045,114900.0,114890.0,0.06479835]
[1761665855752,0.4085,114900.0,114890.0,0.05590835]
[1761665856146,0.4085,114900.0,114890.0,0.004]
[1761665857353,0.4045,114900.0,114890.0,0.05819011]
[1761665857951,0.4045,114900.0,114890.0,0.14523501]
[1761665858146,0.0224,114900.0,114890.0,0.14523501]
[1761665858347,0.0437,114900.0,114890.0,0.50603501]
[1761665859040,0.0437,114900.0,114890.0,0.14523501]
[1761665859253,0.0437,114900.0,114890.0,0.05819011]
[1761665859457,0.0437,114900.0,114890.0,0.14523481]
[1761665861564,0.4045,114930.0,114920.0,0.100382]
[1761665861745,0.4045,114930.0,114920.0,0.05638]
[1761665861746,0.06832196,114930.0,114920.0,0.05638]
[1761665861950,0.0437,114930.0,114920.0,0.05638]
[1761665862252,0.0437,114920.0,114910.0,0.04302]
[1761665862457,0.0437,114920.0,114910.0,0.1300495]
[1761665863354,0.0224,114920.0,114910.0,0.4934495]
[1761665863657,0.0224,114920.0,114910.0,0.1326495]
[1761665864251,0.0224,114920.0,114910.0,0.4934495]
[1761665864447,0.4055,114930.0,114920.0,0.1434021]
[1761665864646,0.4055,114930.0,114920.0,0.86380642]
[1761665864647,0.001,114930.0,114920.0,0.86380642]
[1761665864960,0.4045,114950.0,114940.0,0.143387]
[1761665865254,0.42914115,114950.0,114940.0,0.143387]
[1761665866354,0.42914115,114950.0,114940.0,0.145387]
[1761665866763,0.78614547,114950.0,114940.0,0.002]
[1761665866963,0.43174115,114950.0,114940.0,0.002]
[1761665867264,0.42914115,114950.0,114940.0,0.145387]
[1761665867669,0.42914115,114950.0,114940.0,0.05838]
[1761665868056,0.42914115,114950.0,114940.0,0.04502]
[1761665868267,0.42914115,114950.0,114940.0,0.02337]
[1761665868464,0.0437,114930.0,114920.0,0.5041989]
[1761665869155,0.0437,114930.0,114920.0,0.50040322]
[1761665869466,0.0437,114930.0,114920.0,0.86380322]
[1761665869762,0.0437,114930.0,114920.0,0.87180322]
[1761665869962,0.0437,114940.0,114930.0,0.1300339]
[1761665870156,0.3832,114950.0,114940.0,0.1300263]
[1761665870351,0.4291203,114950.0,114940.0,0.05638]
[1761665872471,0.0437,114940.0,114930.0,0.05170473]
[1761665872668,0.4045,114940.0,114930.0,0.13871913]
[1761665873067,0.42911543,114940.0,114930.0,0.13871913]
[1761665873367,0.4045,114940.0,114930.0,0.13871913]
[1761665874173,0.4045,114940.0,114930.0,0.05170473]
[1761665874563,0.41724,114940.0,114930.0,0.03405473]
[1761665874862,0.41724,114940.0,114930.0,0.12106923]
[1761665875464,0.4045,114940.0,114930.0,0.14271923]
[1761665875864,0.41724,114940.0,114930.0,0.05570473]
[1761665876065,0.41724,114940.0,114930.0,0.03005473]
[1761665876273,0.41724,114940.0,114930.0,0.01268473]
[1761665876472,0.41984,114940.0,114930.0,0.01268473]
[1761665877072,1.01984,114940.0,114930.0,0.004]
[1761665877270,0.0437,114900.0,114890.0,0.29766603]
[1761665878067,0.0437,114900.0,114890.0,0.30653645]
[1761665878469,0.0437,114900.0,114890.0,0.39358125]
[1761665878668,0.0437,114900.0,114890.0,0.39618125]
[1761665878874,0.04369,114880.0,114870.0,0.21044199]
[1761665879269,0.04369,114880.0,114870.0,0.14125821]
[1761665879469,0.04369,114890.0,114880.0,0.1456629]
[1761665879671,0.04369,114890.0,114880.0,0.06121]
[1761665879871,0.40449,114890.0,114880.0,0.05861]
[1761665880270,0.3608,114890.0,114880.0,0.1456627]
[1761665880474,0.04369,114900.0,114890.0,0.04531]
[1761665880674,0.04369,114900.0,114890.0,0.04791]
[1761665880877,0.40449,114900.0,114890.0,0.04791]
[1761665881373,0.40449,114900.0,114890.0,0.1349549]
[1761665881577,0.40449,114900.0,114890.0,0.04791]
[1761665881877,0.04369,114900.0,114890.0,0.1359551]
[1761665882381,0.04369,114900.0,114890.0,0.85375942]
[1761665882682,0.40449,114910.0,114900.0,0.1456475]
[1761665883880,0.40449,114910.0,114900.0,0.05861]
[1761665884079,0.40449,114910.0,114900.0,0.1456476]
[1761665884276,0.40449,114910.0,114900.0,0.05861]
[1761665884477,0.40449,114910.0,114900.0,0.06161]
[1761665884981,0.40449,114910.0,114900.0,0.1486476]
[1761665885381,0.40449,114910.0,114900.0,0.1512476]
[1761665885780,0.02164,114910.0,114900.0,0.50825192]
[1761665886083,0.02164,114910.0,114900.0,0.50925192]
[1761665886491,0.40449,114920.0,114910.0,0.1323398]
[1761665886676,0.40449,114920.0,114910.0,0.1349398]
[1761665887186,0.40449,114920.0,114910.0,0.04531]
[1761665887582,0.40449,114920.0,114910.0,0.13234]
[1761665887885,0.413,114920.0,114910.0,0.13234]
[1761665888079,0.40449,114920.0,114910.0,0.13234]
[1761665888280,0.02164,114920.0,114910.0,0.48934432]
[1761665888489,0.40525,114930.0,114920.0,0.1449325]
[1761665888690,0.40525,114930.0,114920.0,0.1475325]
[1761665889190,0.40525,114940.0,114930.0,0.1309754]
[1761665890183,0.40525,114940.0,114930.0,0.04396]
[1761665890886,0.02178,114930.0,114920.0,0.02576]
[1761665891079,0.04445,114930.0,114920.0,0.05791]
[1761665891382,0.40525,114930.0,114920.0,0.1449322]
[1761665892276,0.40525,114930.0,114920.0,0.05791]
[1761665892482,0.40525,114930.0,114920.0,0.1449331]
[1761665892786,0.40525,114930.0,114920.0,0.1459331]
[1761665893384,0.40525,114930.0,114920.0,0.1449331]
[1761665893580,0.40525,114930.0,114920.0,0.003]
[1761665893974,0.40525,114930.0,114920.0,0.1339828]
[1761665894180,0.40525,114930.0,114920.0,0.1459328]
[1761665894489,0.04445,114930.0,114920.0,0.1485328]
[1761665895280,0.04445,114930.0,114920.0,0.50553712]
[1761665895681,0.04445,114930.0,114920.0,0.1485328]
[1761665896089,0.40525,114940.0,114930.0,0.04396]
[1761665896477,0.40525,114940.0,114930.0,0.133575]
[1761665897289,0.40525,114950.0,114940.0,0.05791]
[1761665897484,0.04445,114950.0,114940.0,0.1449174]
[1761665897787,0.40525,114950.0,114940.0,0.1475174]
[1761665897982,0.40525,114950.0,114940.0,0.15602444]
[1761665898484,0.40525,114950.0,114940.0,0.15342444]
[1761665898690,0.40525,114950.0,114940.0,0.15442444]
[1761665899784,0.40525,114950.0,114940.0,0.06741704]
[1761665900687,0.40525,114950.0,114940.0,0.15442484]
[1761665901991,0.04445,114950.0,114940.0,0.15442484]
[1761665902382,0.40525,114950.0,114940.0,0.15442484]
[1761665903089,0.40525,114950.0,114940.0,0.03226704]
[1761665903090,0.41799,114950.0,114940.0,0.03226704]
[1761665903291,0.41799,114950.0,114940.0,0.00950704]
[1761665904392,0.41799,114950.0,114940.0,0.001]
[1761665904587,0.42059,114950.0,114940.0,0.001]
[1761665905184,0.04445,114940.0,114930.0,0.1538088]
[1761665905496,0.40525,114940.0,114930.0,0.1449255]
[1761665906298,0.40525,114940.0,114930.0,0.15364153]
[1761665906488,0.04445,114940.0,114930.0,0.15364153]
[1761665906794,0.04445,114940.0,114930.0,0.15464153]
[1761665906982,0.40525,114940.0,114930.0,0.06762633]
[1761665907187,0.40525,114940.0,114930.0,0.15364153]
[1761665907390,0.40525,114940.0,114930.0,0.15664153]
[1761665908090,0.40525,114940.0,114930.0,0.15764153]
[1761665908396,0.40525,114940.0,114930.0,0.15764143]
[1761665909400,0.40525,114940.0,114930.0,0.15464143]
[1761665909603,0.40525,114940.0,114930.0,0.15564143]
[1761665909797,0.40525,114940.0,114930.0,0.06862633]
[1761665910098,0.40525,114940.0,114930.0,0.07062633]
[1761665910497,0.40525,114940.0,114930.0,0.06927633]
[1761665910704,0.40925,114940.0,114930.0,0.05667633]
[1761665910899,0.40525,114940.0,114930.0,0.05667633]
[1761665911197,0.40525,114940.0,114930.0,0.15629163]
[1761665911502,0.04445,114940.0,114930.0,0.15889163]
[1761665912005,0.04445,114940.0,114930.0,0.15629133]
[1761665912006,0.40525,114940.0,114930.0,0.15629133]
[1761665913104,0.40525,114940.0,114930.0,0.06927633]
[1761665913403,0.40525,114940.0,114930.0,0.15629123]
[1761665914805,0.40525,114940.0,114930.0,0.06927633]
[1761665915607,0.40525,114940.0,114930.0,0.15629143]
[1761665917603,0.04445,114940.0,114930.0,0.15629143]
[1761665917797,0.04445,114940.0,114930.0,0.4224973]
[1761665918199,0.40525,114940.0,114930.0,0.15629163]
[1761665919908,0.40525,114940.0,114930.0,0.06927633]
[1761665920104,0.40525,114940.0,114930.0,0.15629153]
[1761665920610,0.40932,114940.0,114930.0,0.05667633]
[1761665921010,0.40525,114940.0,114930.0,0.15629173]
[1761665921508,0.04445,114940.0,114930.0,0.15629173]
[1761665921709,0.04445,114940.0,114930.0,0.4224976]
[1761665922007,0.04445,114940.0,114930.0,0.4250976]
[1761665922202,0.04445,114940.0,114930.0,0.7858976]
[1761665923103,0.04445,114940.0,114930.0,0.7832976]
[1761665923309,0.40489,114950.0,114940.0,0.1422874]
[1761665923899,0.04409,114950.0,114940.0,0.1422874]
[1761665924307,0.40489,114950.0,114940.0,0.1422874]
[1761665925212,0.41757,114950.0,114940.0,0.04268]
[1761665925402,0.40489,114950.0,114940.0,0.1422874]
[1761665925905,0.40489,114950.0,114940.0,0.1432874]
[1761665926512,0.40489,114950.0,114940.0,0.05628]
[1761665927821,0.58792602,114950.0,114940.0,0.02231]
[1761665928003,0.61252664,114950.0,114940.0,0.001]
[1761665928417,0.44217062,114950.0,114940.0,0.04368]
[1761665928618,0.61252664,114950.0,114940.0,0.04368]
[1761665928812,0.58792602,114950.0,114940.0,0.04368]
[1761665929620,0.41757,114950.0,114940.0,0.05628]
[1761665929917,0.58792602,114950.0,114940.0,0.22663602]
[1761665930323,0.58792602,114950.0,114940.0,0.31364342]
[1761665931318,0.57524602,114950.0,114940.0,0.31364342]
[1761665931612,0.40489,114950.0,114940.0,0.31364342]
[1761665931809,0.57524602,114950.0,114940.0,0.22663602]
[1761665932012,0.57524602,114950.0,114940.0,0.31364352]
[1761665932714,0.40489,114950.0,114940.0,0.31364352]
[1761665933519,0.40489,114950.0,114940.0,0.48399954]
[1761665937123,0.06868599,114950.0,114940.0,0.84479954]
[1761665937318,0.04409,114950.0,114940.0,0.84479954]
[1761665941024,0.40859,114960.0,114950.0,0.1456001]
[1761665941228,0.43315964,114960.0,114950.0,0.31595612]
[1761665941429,0.41105964,114960.0,114950.0,0.48631214]
[1761665941637,0.43315964,114960.0,114950.0,0.31595612]
[1761665942429,0.41105964,114960.0,114950.0,0.31595612]
[1761665942830,0.07235964,114960.0,114950.0,0.31595612]
[1761665943024,0.04779,114960.0,114950.0,0.31595612]
[1761665943426,0.02569,114960.0,114950.0,0.31595612]